bitfinex-derivatives/quotes_SOLF0:USTF0_20230902
["timestamp","ask_amount","ask_price","bid_price","bid_amount"]
[1693678037873,125.06,19.239,19.228,5.96470055]
[1693678038771,125.06,19.242,19.231,15.57]
[1693678038966,125.06,19.245,19.234,15.57]
[1693678039171,125.06,19.245,19.236,15.57]
[1693678039471,125.06,19.245,19.238,15.57]
[1693678039677,125.06,19.245,19.234,15.57]
[1693678039973,125.06,19.245,19.236,15.57]
[1693678040175,125.06,19.245,19.238,15.57]
[1693678040370,125.06,19.245,19.239,5.46363057]
[1693678040575,125.06,19.245,19.234,15.57]
[1693678040875,125.06,19.249,19.238,15.57]
[1693678041076,125.06,19.249,19.239,5.46339696]
[1693678042179,21.4202,19.248,19.239,5.46339696]
[1693678042570,21.4202,19.248,19.238,15.57]
[1693678042870,21.4202,19.248,19.239,5.46339696]
[1693678043076,21.4202,19.248,19.241,15.57]
[1693678043275,21.4202,19.248,19.236,229.02]
[1693678043467,21.4202,19.248,19.238,15.57]
[1693678043775,21.4202,19.248,19.239,5.46322855]
[1693678043976,21.4202,19.248,19.241,15.57]
[1693678044173,21.4202,19.248,19.238,15.57]
[1693678044471,21.4202,19.248,19.239,5.46318853]
[1693678050475,229.02,19.252,19.239,234.48318853]
[1693678050780,229.02,19.252,19.241,15.57]
[1693678050976,229.02,19.252,19.242,5.46318853]
[1693678051281,229.02,19.252,19.243,5.46318853]
[1693678051477,229.02,19.252,19.246,15.57]
[1693678051676,229.02,19.252,19.239,229.02]
[1693678051872,229.02,19.252,19.241,15.57]
[1693678052078,229.02,19.252,19.242,5.46100814]
[1693678052278,229.02,19.252,19.243,5.46100814]
[1693678052478,229.02,19.252,19.245,15.57]
[1693678052678,229.02,19.252,19.239,229.02]
[1693678052873,229.02,19.252,19.241,15.57]
[1693678053175,229.02,19.252,19.242,5.4609855]
[1693678053380,916.08,19.27,19.237,184.8278294]
[1693678053381,229.02,19.258,19.245,229.02]
[1693678053583,229.02,19.256,19.246,5.4609855]
[1693678053881,229.02,19.256,19.247,5.4609855]
[1693678054081,229.02,19.256,19.246,5.4609855]
[1693678054283,229.02,19.256,19.247,5.46002228]
[1693678054580,229.02,19.256,19.248,5.46002228]
[1693678054782,229.02,19.256,19.245,15.57]
[1693678054983,229.02,19.256,19.246,5.46005185]
[1693678057376,229.02,19.258,19.246,5.46005185]
[1693678060287,21.7674,19.26,19.248,229.02]
[1693678060483,21.7674,19.26,19.25,15.57]
[1693678060684,229.02,19.261,19.248,229.02]
[1693678060987,20.4504,19.26,19.25,15.57]
[1693678061290,20.4504,19.26,19.252,15.57]
[1693678061588,229.02,19.263,19.253,5.4573348]
[1693678061788,229.02,19.263,19.25,229.02]
[1693678061986,229.02,19.265,19.252,244.59]
[1693678062183,229.02,19.265,19.253,5.45726754]
[1693678067394,124.72,19.265,19.253,130.17726754]
[1693678067595,124.72,19.265,19.254,5.45726754]
[1693678069997,124.72,19.265,19.253,124.72]
[1693678071091,124.72,19.261,19.248,124.72]
[1693678071397,124.72,19.257,19.25,15.57]
[1693678071594,124.72,19.257,19.245,140.29]
[1693678071799,124.72,19.257,19.246,5.45987667]
[1693678071988,124.72,19.255,19.246,5.45987667]
[1693678073892,498.88,19.262,19.246,5.45987667]
[1693678073893,124.72,19.257,19.246,5.45987667]
[1693678074896,124.72,19.257,19.246,84.70108378]
[1693678075100,124.72,19.257,19.247,5.45987667]
[1693678075901,124.72,19.26,19.248,124.72]
[1693678076102,124.72,19.26,19.25,15.57]
[1693678076301,124.72,19.26,19.248,124.72]
[1693678076602,21.575,19.259,19.25,15.57]
[1693678076801,21.575,19.259,19.248,124.72]
[1693678077101,21.575,19.259,19.25,15.57]
[1693678077299,124.72,19.26,19.248,124.72]
[1693678077500,22.3314,19.259,19.25,15.57]
[1693678077702,22.3314,19.259,19.248,124.72]
[1693678077899,124.72,19.26,19.25,15.57]
[1693678078099,124.72,19.26,19.248,124.72]
[1693678078295,124.72,19.263,19.252,15.57]
[1693678078802,22.3314,19.262,19.252,15.57]
[1693678079302,124.72,19.263,19.252,15.57]
[1693678079596,140.3,19.263,19.252,15.57]
[1693678079800,124.72,19.261,19.248,124.72]
[1693678080003,124.72,19.261,19.25,15.57]
[1693678080201,124.72,19.261,19.248,124.72]
[1693678080405,124.72,19.257,19.249,5.45984347]
[1693678080602,124.72,19.261,19.247,124.72]
[1693678080799,124.72,19.261,19.248,5.45984347]
[1693678081996,15.58,19.255,19.245,79.23071767]
[1693678082199,124.72,19.253,19.244,0.06278614]
[1693678082399,124.72,19.249,19.242,5.4629932]
[1693678082797,124.72,19.249,19.243,5.4629932]
[1693678083003,124.72,19.249,19.238,94.87102048]
[1693678083199,124.72,19.249,19.239,5.04178417]
[1693678087400,15.58,19.249,19.239,5.04178417]
[1693678088610,20.8726,19.253,19.239,234.09178417]
[1693678088807,20.8726,19.253,19.241,15.57]
[1693678089006,229.05,19.254,19.242,5.04178417]
[1693678089601,229.50454546,19.254,19.242,5.04178417]
[1693678089806,229.05,19.254,19.242,5.04178417]
[1693678090101,229.50454546,19.254,19.242,5.04178417]
[1693678090307,229.05,19.254,19.242,5.04178417]
[1693678090510,229.50454546,19.254,19.242,5.04178417]
[1693678090814,229.05,19.254,19.242,5.04178417]
[1693678091012,229.50454546,19.254,19.242,5.04178417]
[1693678091309,229.05,19.254,19.242,5.04178417]
[1693678091514,229.50454546,19.254,19.242,5.04178417]
[1693678091703,229.05,19.254,19.242,5.04178417]
[1693678092007,229.50454546,19.254,19.242,5.04178417]
[1693678092208,229.05,19.254,19.242,5.04178417]
[1693678092414,229.50454546,19.254,19.242,5.04178417]
[1693678092704,229.05,19.254,19.242,5.04178417]
[1693678092909,229.50454546,19.254,19.242,5.04178417]
[1693678093109,229.05,19.254,19.242,5.04178417]
[1693678093311,229.50454546,19.254,19.242,5.04178417]
[1693678093512,229.05,19.254,19.242,5.04178417]
[1693678093713,229.50454546,19.254,19.242,5.04178417]
[1693678094012,229.05,19.254,19.242,5.04178417]
[1693678094213,229.50454546,19.254,19.242,5.04178417]
[1693678094516,229.05,19.254,19.242,5.04178417]
[1693678094814,229.50454546,19.254,19.242,5.04178417]
[1693678095012,229.05,19.254,19.242,5.04178417]
[1693678095212,229.50454546,19.254,19.242,5.04178417]
[1693678095412,229.05,19.254,19.242,5.04178417]
[1693678095605,229.50454546,19.254,19.242,5.04178417]
[1693678095912,229.05,19.254,19.242,5.04178417]
[1693678096107,229.50454546,19.254,19.242,5.04178417]
[1693678096314,229.05,19.254,19.242,5.04178417]
[1693678096511,229.50454546,19.254,19.242,5.04178417]
[1693678096714,229.05,19.254,19.242,5.04178417]
[1693678096905,229.50454546,19.254,19.242,5.04178417]
[1693678097107,229.05,19.254,19.242,5.04178417]
[1693678097316,229.50454546,19.254,19.242,5.04178417]
[1693678097509,229.05,19.254,19.242,5.04178417]
[1693678097708,229.50454546,19.254,19.242,5.04178417]
[1693678097913,229.05,19.254,19.242,5.04178417]
[1693678098111,229.50454546,19.254,19.242,5.04178417]
[1693678098312,229.05,19.254,19.242,5.04178417]
[1693678098612,229.50454546,19.254,19.242,5.04178417]
[1693678098914,229.05,19.254,19.242,5.04178417]
[1693678099210,229.50454546,19.254,19.245,15.58]
[1693678099409,229.05,19.254,19.245,15.58]
[1693678099608,229.50454546,19.254,19.245,15.58]
[1693678099812,229.05,19.254,19.245,15.58]
[1693678100012,229.50454546,19.254,19.245,15.58]
[1693678100212,229.05,19.254,19.245,15.58]
[1693678100413,229.50454546,19.254,19.245,15.58]
[1693678100610,15.58,19.255,19.246,5.04022781]
[1693678100808,0.45454546,19.254,19.246,5.04022781]
[1693678101011,15.58,19.255,19.246,5.04022781]
[1693678101214,0.45454546,19.254,19.246,5.04022781]
[1693678101516,15.58,19.255,19.246,5.04022781]
[1693678101712,0.45454546,19.254,19.246,5.04022781]
[1693678101907,15.58,19.255,19.246,5.04022781]
[1693678102210,0.45454546,19.256,19.246,5.04022781]
[1693678102211,0.45454546,19.254,19.246,5.04022781]
[1693678102414,15.58,19.255,19.246,5.04022781]
[1693678102615,0.45454546,19.254,19.246,5.04022781]
[1693678103218,15.58,19.255,19.246,5.04022781]
[1693678103412,0.45454546,19.254,19.246,5.04022781]
[1693678104114,15.58,19.255,19.246,5.04022781]
[1693678104320,0.45454546,19.254,19.246,5.04022781]
[1693678104515,15.58,19.255,19.246,5.04022781]
[1693678104814,0.45454546,19.254,19.246,5.04022781]
[1693678105020,15.58,19.255,19.246,5.04022781]
[1693678105219,0.45454546,19.254,19.246,5.04022781]
[1693678105518,15.58,19.255,19.246,5.04022781]
[1693678105820,0.45454546,19.254,19.246,5.04022781]
[1693678106123,15.58,19.255,19.246,5.04022781]
[1693678106415,0.45454546,19.254,19.246,5.04022781]
[1693678106619,15.58,19.255,19.246,5.04022781]
[1693678106820,0.45454546,19.254,19.246,5.04022781]
[1693678107020,15.58,19.255,19.246,5.04022781]
[1693678107219,0.45454546,19.254,19.246,5.04022781]
[1693678110321,125.31454546,19.254,19.246,5.04022781]
[1693678110517,124.86,19.254,19.246,5.04022781]
[1693678110912,124.86,19.254,19.244,0.06278614]
[1693678111113,0.45454546,19.258,19.244,0.06278614]
[1693678111114,124.86,19.251,19.244,0.06278614]
[1693678112021,124.86,19.249,19.244,0.06278614]
[1693678112423,15.58,19.245,19.241,5.04193558]
[1693678112616,15.58,19.245,19.236,15.58]
[1693678112814,499.44,19.254,19.228,31.22661828]
[1693678112815,15.58,19.243,19.228,31.22661828]
[1693678113018,500.0,19.252,19.229,4.65614219]
[1693678113019,124.86,19.24,19.229,4.65614219]
[1693678113225,124.86,19.24,19.229,84.04479936]
[1693678113430,124.86,19.24,19.23,4.65614219]
[1693678116932,124.86,19.24,19.231,4.65614219]
[1693678117234,15.58,19.236,19.232,4.65614219]
[1693678117433,15.58,19.236,19.228,31.22661828]
[1693678117731,15.58,19.236,19.229,4.29886516]
[1693678120736,15.58,19.236,19.23,4.29886516]
[1693678121038,15.58,19.236,19.226,121.21062384]
[1693678121039,15.58,19.236,19.231,4.29886516]
[1693678121231,15.58,19.236,19.232,4.29886516]
[1693678121434,15.58,19.236,19.225,219.87192255]
[1693678121634,15.58,19.236,19.226,4.29898456]
[1693678122029,15.6,19.233,19.226,83.73090711]
[1693678122231,15.6,19.233,19.227,4.29898456]
[1693678122435,15.6,19.233,19.222,148.50497946]
[1693678122633,15.6,19.233,19.223,4.30021722]
[1693678126534,15.6,19.229,19.219,15.6]
[1693678126741,15.6,19.229,19.22,4.30240566]
[1693678126935,124.86,19.227,19.221,4.30240566]
[1693678127234,15.6,19.223,19.217,31.71828414]
[1693678127434,15.6,19.223,19.212,124.86]
[1693678127435,15.6,19.223,19.218,4.30295479]
[1693678127641,15.6,19.223,19.212,124.86]
[1693678127933,15.6,19.22,19.213,4.30537048]
[1693678128132,15.6,19.22,19.214,4.30537048]
[1693678128342,15.6,19.22,19.209,204.43795773]
[1693678128541,15.6,19.22,19.21,4.30534846]
[1693678128841,0.45454546,19.229,19.21,4.30534846]
[1693678128842,124.86,19.218,19.21,4.30534846]
[1693678129038,124.86,19.218,19.211,4.30534846]
[1693678129243,124.86,19.218,19.209,4.30534846]
[1693678129432,124.86,19.215,19.21,4.30534846]
[1693678129738,124.86,19.215,19.205,40.56578262]
[1693678130038,124.86,19.219,19.206,129.1658899]
[1693678130234,124.86,19.219,19.207,4.3058899]
[1693678131436,124.86,19.222,19.209,124.86]
[1693678131640,124.86,19.224,19.212,124.86]
[1693678131940,124.86,19.231,19.218,124.86]
[1693678132135,124.86,19.231,19.219,4.3058899]
[1693678133531,0.45454546,19.236,19.221,124.86]
[1693678133532,124.86,19.234,19.221,124.86]
[1693678133734,124.86,19.234,19.221,157.37795637]
[1693678133939,124.86,19.234,19.222,21.1346]
[1693678134445,124.86,19.231,19.221,32.51795637]
[1693678135042,124.86,19.229,19.216,124.86]
[1693678135237,124.86,19.229,19.217,4.30333267]
[1693678135440,124.86,19.232,19.219,124.86]
[1693678135931,124.86,19.229,19.217,151.65924391]
[1693678138234,124.86,19.232,19.22,124.86]
[1693678138435,41.73804573,19.245,19.226,124.86]
[1693678138436,124.86,19.238,19.226,124.86]
[1693678139045,124.86,19.238,19.227,21.6529]
[1693678139544,124.86,19.238,19.226,124.86]
[1693678140337,12.7722,19.244,19.223,124.86]
[1693678140338,124.86,19.235,19.223,124.86]
[1693678140541,124.86,19.232,19.219,124.86]
[1693678141436,124.86,19.226,19.213,124.86]
[1693678141642,0.45454546,19.225,19.213,124.86]
[1693678142343,0.45454546,19.225,19.212,229.62]
[1693678143841,229.62,19.223,19.209,229.62]
[1693678144042,229.62,19.22,19.208,21.6594]
[1693678145348,229.62,19.217,19.203,229.62]
[1693678145545,0.45454546,19.216,19.204,4.30695015]
[1693678145748,229.62,19.213,19.204,4.30695015]
[1693678145939,229.62,19.213,19.2,229.62]
[1693678146138,229.62,19.213,19.201,4.30981631]
[1693678146348,229.62,19.213,19.2,229.62]
[1693678147044,229.62,19.216,19.202,229.62]
[1693678147242,229.62,19.216,19.203,4.31037899]
[1693678147448,0.45454546,19.215,19.203,24.83857899]
[1693678147647,0.45454546,19.215,19.202,229.62]
[1693678147946,0.45454546,19.215,19.203,25.7886672]
[1693678148145,0.45454546,19.215,19.203,21.4803]
[1693678148446,0.45454546,19.221,19.203,21.4803]
[1693678148842,500.45454546,19.221,19.203,21.4803]
[1693678149040,0.45454546,19.22,19.203,21.4803]
[1693678149238,13.26904546,19.22,19.198,29.85499317]
[1693678149441,0.45454546,19.219,19.199,25.79072501]
[1693678149642,0.45454546,19.218,19.199,21.4803]
[1693678149837,0.45454546,19.217,19.199,21.4803]
[1693678150041,0.45454546,19.216,19.199,21.4803]
[1693678150243,0.45454546,19.215,19.2,30.34996667]
[1693678150548,0.45454546,19.225,19.201,4.30830667]
[1693678150744,0.45454546,19.225,19.201,504.30830667]
[1693678150949,0.45454546,19.225,19.203,154.2]
[1693678151145,180.24511723,19.248,19.203,154.2]
[1693678151146,0.45454546,19.23,19.204,4.30830667]
[1693678151442,0.45454546,19.229,19.204,4.30830667]
[1693678151646,0.45454546,19.228,19.205,4.30830667]
[1693678151947,500.0,19.231,19.205,4.30830667]
[1693678151948,0.45454546,19.227,19.205,4.30830667]
[1693678152143,12.8145,19.23,19.205,4.30830667]
[1693678152442,0.45454546,19.229,19.206,26.03353]
[1693678152844,0.45454546,19.229,19.207,20.8827]
[1693678153044,10.00895204,19.236,19.207,20.8827]
[1693678153246,500.0,19.221,19.206,26.03353]
[1693678153545,0.45454546,19.22,19.2,42.08116544]
[1693678153751,13.26904546,19.22,19.198,29.85499317]
[1693678154051,0.45454546,19.219,19.199,20.4173]
[1693678154351,0.45454546,19.218,19.199,20.4173]
[1693678154544,0.45454546,19.217,19.199,20.4173]
[1693678154743,0.45454546,19.216,19.199,20.4173]
[1693678154948,0.45454546,19.215,19.199,20.4173]
[1693678155246,0.45454546,19.221,19.199,20.4173]
[1693678157655,500.0,19.212,19.199,20.4173]
[1693678157853,0.45454546,19.211,19.198,29.72912347]
[1693678158354,0.45454546,19.211,19.189,41.55335762]
[1693678158555,0.45454546,19.211,19.19,4.31219754]
[1693678158761,0.45454546,19.211,19.182,20.5507]
[1693678158762,0.45454546,19.211,19.187,30.01335431]
[1693678159056,0.45454546,19.211,19.198,0.12590997]
[1693678159454,0.45454546,19.21,19.198,0.12590997]
[1693678163359,15.63,19.209,19.198,0.12590997]
[1693678163556,15.63,19.207,19.198,0.12590997]
[1693678163759,12.8047,19.211,19.198,0.12590997]
[1693678163760,0.45454546,19.206,19.198,0.12590997]
[1693678163954,15.63,19.204,19.198,0.12590997]
[1693678164156,16.08454546,19.21,19.198,0.12590997]
[1693678164355,0.45454546,19.209,19.198,0.12590997]
[1693678165252,15.63,19.202,19.184,15.62]
[1693678165453,0.45454546,19.201,19.183,15.62]
[1693678166159,15.63,19.199,19.183,15.62]
[1693678166351,15.63,19.213,19.183,515.62]
[1693678166557,10.01947587,19.212,19.183,515.62]
[1693678166757,500.0,19.224,19.183,515.62]
[1693678166758,15.63,19.21,19.183,515.62]
[1693678167054,0.45454546,19.209,19.184,26.06338]
[1693678167253,15.63,19.207,19.184,26.06338]
[1693678167455,0.45454546,19.207,19.184,26.06338]
[1693678167654,10.01915584,19.213,19.184,26.06338]
[1693678167859,0.45454546,19.212,19.184,26.06338]
[1693678168357,0.45454546,19.212,19.184,180.26338]
[1693678168556,10.01915584,19.212,19.184,180.26338]
[1693678168857,15.63,19.21,19.184,180.26338]
[1693678169059,0.45454546,19.209,19.184,180.26338]
[1693678169256,9.56381527,19.213,19.184,180.26338]
[1693678169559,0.45454546,19.212,19.184,180.26338]
[1693678169762,15.63,19.21,19.184,180.26338]
[1693678170064,15.63,19.221,19.193,15.62]
[1693678170252,10.01564253,19.22,19.194,20.9358]
[1693678170456,10.01564253,19.219,19.194,20.9358]
[1693678170654,15.63,19.217,19.194,20.9358]
[1693678171066,0.45454546,19.217,19.194,20.9358]
[1693678171254,10.01559196,19.219,19.194,20.9358]
[1693678171456,15.63,19.217,19.194,20.9358]
[1693678171764,16.08454546,19.217,19.193,15.62]
[1693678171959,16.08454546,19.217,19.194,20.9358]
[1693678173762,16.08454546,19.217,19.199,15.62]
[1693678173962,0.45454546,19.217,19.199,15.62]
[1693678174163,22.69984671,19.223,19.199,15.62]
[1693678174366,15.63,19.221,19.199,15.62]
[1693678174665,10.01504671,19.22,19.199,15.62]
[1693678174860,12.6848,19.223,19.199,15.62]
[1693678174861,0.45454546,19.219,19.199,15.62]
[1693678175060,15.63,19.217,19.199,15.62]
[1693678175260,0.45454546,19.217,19.199,15.62]
[1693678175462,15.63,19.221,19.199,15.62]
[1693678175769,0.45454546,19.22,19.199,15.62]
[1693678176463,0.45454546,19.219,19.199,15.62]
[1693678176660,9.55982896,19.223,19.199,15.62]
[1693678176868,15.63,19.221,19.199,15.62]
[1693678177061,0.45454546,19.22,19.199,15.62]
[1693678177358,0.45454546,19.219,19.199,15.62]
[1693678177561,0.45454546,19.218,19.199,15.62]
[1693678177757,0.45454546,19.217,19.199,15.62]
[1693678177954,15.63,19.221,19.199,15.62]
[1693678178157,0.45454546,19.22,19.199,15.62]
[1693678178356,9.55970699,19.223,19.203,15.62]
[1693678178560,15.63,19.224,19.203,15.62]
[1693678178755,15.63,19.224,19.205,15.62]
[1693678180261,15.63,19.232,19.205,15.62]
[1693678180567,15.63,19.23,19.205,15.62]
[1693678180766,10.01134673,19.229,19.205,15.62]
[1693678181068,15.63,19.227,19.205,15.62]
[1693678181368,0.45454546,19.227,19.205,15.62]
[1693678181570,9.55675162,19.232,19.205,15.62]
[1693678181867,15.63,19.23,19.205,15.62]
[1693678182064,0.45454546,19.229,19.205,15.62]
[1693678182265,15.63,19.227,19.205,15.62]
[1693678182466,0.45454546,19.227,19.205,15.62]
[1693678182668,12.6786,19.226,19.205,15.62]
[1693678182868,22.35625687,19.227,19.205,15.62]
[1693678183268,26.00644,19.226,19.205,15.62]
[1693678184464,15.63,19.224,19.205,15.62]
[1693678184673,0.45454546,19.223,19.205,15.62]
[1693678184871,26.46504546,19.223,19.205,15.62]
[1693678185072,15.63,19.221,19.204,20.144]
[1693678185374,0.45454546,19.22,19.199,15.62]
[1693678185565,0.45454546,19.22,19.2,20.1459]
[1693678187271,500.0,19.215,19.198,0.0629567]
[1693678187476,0.45454546,19.214,19.186,20.3934]
[1693678187778,0.45454546,19.214,19.188,15.62]
[1693678188076,0.45454546,19.214,19.186,20.3934]
[1693678188276,0.45454546,19.214,19.188,15.62]
[1693678188572,0.45454546,19.214,19.186,20.3934]
[1693678188573,0.45454546,19.214,19.199,15.62]
[1693678188777,0.45454546,19.214,19.198,0.0629567]
[1693678189974,12.6788,19.22,19.199,15.62]
[1693678189975,0.45454546,19.213,19.199,15.62]
[1693678190281,0.45454546,19.212,19.199,15.62]
[1693678190475,15.63,19.21,19.2,21.5766]
[1693678190680,500.0,19.215,19.2,21.5766]
[1693678190681,0.45454546,19.209,19.2,21.5766]
[1693678190982,15.63,19.207,19.2,21.5766]
[1693678191176,0.45454546,19.219,19.2,21.5766]
[1693678191379,13.13334546,19.219,19.199,37.1966]
[1693678191577,15.63,19.217,19.199,15.62]
[1693678191885,0.45454546,19.22,19.2,21.5766]
[1693678192284,0.45454546,19.219,19.2,21.5766]
[1693678192491,15.63,19.217,19.2,21.5766]
[1693678192688,0.45454546,19.224,19.2,21.5766]
[1693678192885,0.45454546,19.223,19.2,21.5766]
[1693678193188,26.46504546,19.223,19.2,21.5766]
[1693678193382,15.63,19.221,19.2,21.5766]
[1693678193588,0.45454546,19.22,19.2,21.5766]
[1693678193785,38.6928,19.223,19.2,21.5766]
[1693678193786,0.45454546,19.219,19.2,21.5766]
[1693678193983,15.62,19.217,19.2,21.5766]
[1693678194183,12.6823,19.224,19.2,21.5766]
[1693678194184,0.45454546,19.223,19.2,21.5766]
[1693678194380,15.62,19.221,19.2,21.5766]
[1693678194597,0.45454546,19.22,19.2,21.5766]
[1693678194889,0.45454546,19.219,19.2,21.5766]
[1693678195089,15.62,19.217,19.2,21.5766]
[1693678195390,15.62,19.224,19.2,21.5766]
[1693678195590,0.45454546,19.223,19.2,21.5766]
[1693678196288,15.62,19.224,19.2,21.5766]
[1693678196488,0.45454546,19.223,19.2,21.5766]
[1693678196695,15.62,19.221,19.2,21.5766]
[1693678196996,0.45454546,19.22,19.2,21.5766]
[1693678197290,0.45454546,19.219,19.2,21.5766]
[1693678197490,15.62,19.217,19.2,21.5766]
[1693678197695,15.62,19.224,19.199,15.62]
[1693678197888,0.45454546,19.223,19.2,20.1432]
[1693678198092,15.62,19.224,19.2,20.1432]
[1693678198292,0.45454546,19.223,19.2,20.1432]
[1693678198488,15.62,19.221,19.2,20.1432]
[1693678198794,0.45454546,19.22,19.2,20.1432]
[1693678199090,0.45454546,19.219,19.2,20.1432]
[1693678199293,15.62,19.224,19.199,15.62]
[1693678199488,0.45454546,19.234,19.202,15.61]
[1693678199688,0.45454546,19.234,19.203,4.31079381]
[1693678199996,0.45454546,19.234,19.203,26.38969381]
[1693678200190,0.45454546,19.234,19.203,22.0789]
[1693678201593,0.45454546,19.234,19.205,15.61]
[1693678201787,0.45454546,19.234,19.203,22.0789]
[1693678201984,0.45454546,19.234,19.205,15.61]
[1693678202185,0.45454546,19.234,19.203,22.0789]
[1693678202386,0.45454546,19.234,19.205,15.61]
[1693678202585,0.45454546,19.234,19.203,22.0789]
[1693678202895,0.45454546,19.234,19.205,15.61]
[1693678203090,0.45454546,19.234,19.203,22.0789]
[1693678203292,0.45454546,19.233,19.205,15.61]
[1693678203486,0.45454546,19.232,19.207,15.61]
[1693678203692,15.62,19.23,19.203,22.0789]
[1693678203893,0.45454546,19.229,19.205,15.61]
[1693678204092,15.62,19.227,19.207,15.61]
[1693678204291,0.45454546,19.235,19.205,26.03488]
[1693678204494,13.11724546,19.235,19.207,15.61]
[1693678204695,0.45454546,19.234,19.205,26.03488]
[1693678204891,13.11724546,19.234,19.207,15.61]
[1693678205092,25.99428,19.235,19.203,22.0789]
[1693678205093,15.62,19.227,19.203,22.0789]
[1693678205287,0.45454546,19.226,19.203,22.0789]
[1693678205490,10.01711228,19.226,19.203,22.0789]
[1693678205687,15.62,19.224,19.203,22.0789]
[1693678205891,0.45454546,19.223,19.203,22.0789]
[1693678206088,15.62,19.221,19.203,22.0789]
[1693678206291,15.62,19.217,19.203,22.0789]
[1693678206494,58.10663993,19.201,19.191,15.61]
[1693678206798,58.10663993,19.201,19.193,15.61]
[1693678207390,58.10663993,19.201,19.192,22.1969]
[1693678208002,58.10663993,19.201,19.193,15.61]
[1693678210195,58.10663993,19.201,19.199,15.61]
[1693678210603,24.52843993,19.201,19.199,15.61]
[1693678211099,15.62,19.207,19.199,15.61]
[1693678211303,0.45454546,19.216,19.199,15.61]
[1693678211601,15.62,19.217,19.199,15.61]
[1693678215494,500.0,19.239,19.2,500.0]
[1693678215700,15.62,19.227,19.202,15.61]
[1693678215896,15.62,19.227,19.202,41.64895]
[1693678216100,15.62,19.227,19.203,21.5441]
[1693678217104,15.62,19.227,19.205,15.61]
[1693678217698,15.62,19.227,19.205,26.03488]
[1693678220605,15.62,19.227,19.203,53.4716535]
[1693678220910,0.45454546,19.234,19.203,53.4716535]
[1693678221210,20.6791,19.227,19.203,53.4716535]
[1693678221509,0.45454546,19.232,19.203,53.4716535]
[1693678221711,21.54124546,19.232,19.205,15.61]
[1693678222010,15.62,19.23,19.205,15.61]
[1693678222210,0.45454546,19.229,19.205,15.61]
[1693678222911,0.45454546,19.229,19.203,53.4716535]
[1693678223409,25.99698,19.233,19.203,53.4716535]
[1693678223410,15.62,19.227,19.203,53.4716535]
[1693678223709,0.45454546,19.232,19.203,53.4716535]
[1693678224004,21.0867,19.226,19.203,53.4716535]
[1693678224307,0.45454546,19.232,19.203,53.4716535]
[1693678224510,15.62,19.224,19.203,53.4716535]
[1693678224708,15.62,19.23,19.203,53.4716535]
[1693678225011,0.45454546,19.229,19.203,53.4716535]
[1693678225607,25.99698,19.233,19.203,53.4716535]
[1693678225608,15.62,19.227,19.203,53.4716535]
[1693678225806,0.45454546,19.227,19.203,53.4716535]
[1693678226007,20.1945,19.226,19.203,53.4716535]
[1693678226312,15.62,19.23,19.203,53.4716535]
[1693678226509,25.99698,19.233,19.203,53.4716535]
[1693678226510,0.45454546,19.229,19.203,53.4716535]
[1693678226711,15.61,19.227,19.203,53.4716535]
[1693678226912,15.61,19.23,19.203,53.4716535]
[1693678227110,0.45454546,19.229,19.203,53.4716535]
[1693678227412,15.61,19.227,19.205,15.61]
[1693678227707,0.45454546,19.227,19.203,53.4716535]
[1693678228011,20.1945,19.232,19.205,15.61]
[1693678228012,15.61,19.23,19.205,15.61]
[1693678228212,20.1945,19.232,19.203,53.4716535]